fUSD/lending_fUSD_20240915
["ID","MTS","AMOUNT","RATE_DAILY","PERIOD"]
[338243814,1726420706962,167.0,0.0001252,2]
[338243815,1726420758455,250.0,0.00012147,2]
[338243816,1726420805286,163.46,0.00012636,2]
[338243817,1726420824057,1212.92,0.00012105,2]
[338243818,1726420885214,175.34,0.00012101,2]
[338243822,1726420921233,662.07,0.00010216,2]
[338243823,1726420921455,662.07,0.0001248,2]
[338243824,1726421009075,1050.0,0.00011,2]
[338243825,1726421025946,262.4,0.00012172,2]
[338243826,1726421116989,450.2,0.00012262,2]
[338243827,1726421150029,198.06,0.00012126,2]
[338243828,1726421152249,250.0,0.00012126,2]
[338243829,1726421189253,250.0,0.00012144,2]
[338243830,1726421238720,205.0,9.8e-05,2]
[338243831,1726421241073,169.68,0.00012063,2]
[338243832,1726421243330,245.70008509,0.000101,2]
[338243833,1726421250722,150.0,0.00014532,120]
[338243834,1726421279444,15481.41751108,0.0001,2]
[338243835,1726421290730,153.65,0.00010959,2]
[338243836,1726421293466,4070.9664042,0.000109,2]
[338243839,1726421318133,211.58973942,0.0001,2]
[338243842,1726421354423,167.0,0.00012477,2]
[338243843,1726421388812,1000.0,0.000126,2]
[338243846,1726421422731,672.12,0.00010203,2]
[338243847,1726421422929,672.12,0.00012467,2]
[338243848,1726421423702,743.56481483,0.00012,30]
[338243858,1726421431871,-171.23,0.00012646,2]
[338243859,1726421431882,-737.6,0.00012649,2]
[338243860,1726421431892,-165.17663512,0.0001279,2]
[338243861,1726421431901,-150.0,0.00012799,2]
[338243862,1726421431911,-1581.2891,0.000128,2]
[338243863,1726421431922,-252.1806,0.000128,2]
[338243864,1726421431932,-2155.8422,0.000128,2]
[338243865,1726421431941,-5989.50178551,0.000128,2]
[338243866,1726421431950,-2500.0,0.000128,2]
[338243867,1726421431959,-1462.0,0.000128,2]
[338243868,1726421431968,-355.34774474,0.000128,2]
[338243869,1726421431977,-4871.69760855,0.000128,2]
[338243870,1726421431986,-893.98844,0.0001287,2]
[338243871,1726421431996,-861.8643932,0.0001287,2]
[338243872,1726421432004,-500.0,0.00012873,2]
[338243873,1726421432013,-500.0,0.00012873,2]
[338243874,1726421432023,-380281.89851631,0.0001288,2]
[338243875,1726421432032,-150.81,0.0001289,2]
[338243876,1726421432041,-1115.58,0.00012899,2]
[338243878,1726421432050,-500.0,0.00012899,2]
[338243880,1726421432059,-500.0,0.00012899,2]
[338243882,1726421432069,-450.2047055,0.00012899,2]
[338243884,1726421432078,-500.0,0.00012899,2]
[338243886,1726421432087,-500.0,0.00012899,2]
[338243888,1726421432097,-282.3496,0.000129,2]
[338243890,1726421432107,-1924.6496,0.000129,2]
[338243892,1726421432117,-14133.0822,0.000129,2]
[338243894,1726421432126,-375.611,0.000129,2]
[338243895,1726421432135,-1649.6218,0.000129,2]
[338243897,1726421432144,-2535.5939,0.000129,2]
[338243898,1726421432153,-999.99,0.000129,2]
[338243899,1726421432162,-787.7784,0.000129,2]
[338243900,1726421432173,-185043.5078,0.000129,2]
[338243901,1726421432183,-8203.93,0.000129,2]
[338243902,1726421432192,-2062.6928,0.000129,2]
[338243903,1726421432201,-388.79,0.000129,2]
[338243904,1726421432210,-159.77087476,0.000129,2]
[338243905,1726421432220,-5367.3529,0.000129,2]
[338243906,1726421432230,-5180.28,0.000129,2]
[338243907,1726421432239,-499.99,0.000129,2]
[338243908,1726421432249,-629.13018056,0.000129,2]
[338243909,1726421432258,-436.582,0.00012934,2]
[338243910,1726421432267,-218.416,0.00012934,2]
[338243911,1726421432277,-1000.0,0.00012935,2]
[338243912,1726421432287,-1000.0,0.00012935,2]
[338243913,1726421432296,-1000.0,0.00012935,2]
[338243914,1726421432306,-1000.0,0.00012935,2]
[338243915,1726421432315,-1000.0,0.00012935,2]
[338243916,1726421432326,-1000.0,0.00012935,2]
[338243917,1726421432338,-1000.0,0.00012935,2]
[338243918,1726421432348,-1000.0,0.00012935,2]
[338243919,1726421432358,-1000.0,0.00012935,2]
[338243920,1726421432369,-568.2401,0.00012935,2]
[338243921,1726421432378,-500.0,0.00012973,2]
[338243922,1726421432388,-167.0,0.00012992,2]
[338243923,1726421432398,-15048.6804642,0.00012993,2]
[338243924,1726421432409,-2771.5520665,0.00012993,2]
[338243925,1726421432422,-376.6011705,0.00012993,2]
[338243926,1726421432432,-1877.5669037,0.00012993,2]
[338243927,1726421432442,-1000.0,0.00012999,2]
[338243928,1726421432452,-842.0,0.00013,2]
[338243929,1726421432461,-268468.51766002,0.00013,2]
[338243930,1726421432470,-1340.744,0.00013,2]
[338243931,1726421432480,-781896.57614242,0.00013,2]
[338243932,1726421432503,-1293.8,0.00013,2]
[338243945,1726421438055,-165.17663512,0.00012971,2]
[338243946,1726421438065,-650.7264375,0.00013,2]
[338244107,1726421440054,-455.12830064,0.00013,2]
[338244108,1726421440095,-294.87169936,0.00013,2]
[338244109,1726421440104,-70.18823273,0.00013,2]
[338244220,1726421442923,-5995.84238654,0.00013,2]
[338244221,1726421442981,-1337.72872409,0.00013,2]
[338244222,1726421442993,-2900.64720027,0.00013,2]
[338244240,1726421446229,-839.62459855,0.00013,2]
[338244241,1726421501833,500.0,0.000124,4]
[338244242,1726421503927,1000.0,0.000125,4]
[338244243,1726421506034,1500.0,0.000126,4]
[338244244,1726421563282,790.08,0.00012265,2]
[338244245,1726421665638,250.0,0.00012327,2]
[338244246,1726421703134,200.249,0.0001264,2]
[338244247,1726421748421,239.13,0.00012078,2]
[338244248,1726421763881,250.0,0.00012078,2]
[338244249,1726421850707,150.0,0.00014756,120]
[338244250,1726421862560,23900.0,0.0001195,2]
[338244251,1726421865280,167.0,0.00012445,2]
[338244252,1726421867251,214.64,0.00010959,2]
[338244253,1726421944607,641.27,0.00010016,2]
[338244254,1726421944880,641.27,0.0001228,2]
[338244255,1726421951488,667.47,0.00011934,2]
[338244256,1726422006887,250.0,0.00011934,2]
[338244257,1726422020283,282.63,0.00011934,2]
[338244258,1726422036751,156.79,0.00011942,2]
[338244259,1726422037963,735.93308574,0.00012619,2]
[338244260,1726422053214,224.26,0.00011942,2]
[338244261,1726422081586,367.93,0.00011937,2]
[338244262,1726422138264,490.62205716,0.00012632,2]
[338244263,1726422161377,250.0,0.0001196,2]
[338244264,1726422163904,160.66,0.0001196,2]
[338244265,1726422164837,160.66,0.00011963,2]
[338244266,1726422164886,160.66,0.00011966,2]
[338244267,1726422164930,160.66,0.00011969,2]
[338244268,1726422164970,160.66,0.00011973,2]
[338244269,1726422167516,160.66,0.00011976,2]
[338244270,1726422168632,160.66,0.00011979,2]
[338244271,1726422168878,160.66,0.00011982,2]
[338244272,1726422169111,160.66,0.00011985,2]
[338244273,1726422169372,160.66,0.00011988,2]
[338244274,1726422169587,160.66,0.00011991,2]
[338244275,1726422169817,160.66,0.00011995,2]
[338244276,1726422170031,160.66,0.00011998,2]
[338244277,1726422170266,160.66,0.00012001,2]
[338244278,1726422170561,160.66,0.00012004,2]
[338244279,1726422170765,160.66,0.00012007,2]
[338244280,1726422170983,160.66,0.0001201,2]
[338244281,1726422171264,160.66,0.00012014,2]
[338244282,1726422171703,160.66,0.00012017,2]
[338244283,1726422172173,160.66,0.0001202,2]
[338244284,1726422184671,379.10659289,0.00012621,2]
[338244285,1726422223200,-2000.0,0.000127,4]
[338244286,1726422223228,-150.0,0.00012732,2]
[338244287,1726422223251,-206.95,0.00012743,2]
[338244288,1726422223273,-150.0,0.00012755,2]
[338244289,1726422223295,-601.24,0.0001278,2]
[338244290,1726422223317,-150.0,0.00012799,2]
[338244291,1726422223340,-2500.0,0.000128,4]
[338244292,1726422223362,-150.0,0.00012803,2]
[338244293,1726422223382,-150.0,0.00012808,2]
[338244294,1726422223403,-499.99,0.00012808,2]
[338244295,1726422223425,-150.0,0.00012854,2]
[338244296,1726422223447,-150.0,0.00012864,2]
[338244297,1726422223467,-4925.0,0.00012899,2]
[338244298,1726422223489,-500.0,0.000129,4]
[338244299,1726422223510,-159.77087476,0.000129,2]
[338244300,1726422223530,-355.34774474,0.000129,2]
[338244301,1726422223550,-150.0,0.00012919,2]
[338244302,1726422223571,-150.0,0.0001293,2]
[338244303,1726422223593,-150.0,0.00012932,2]
[338244304,1726422223615,-150.0,0.0001294,2]
[338244305,1726422223641,-150.0,0.00012948,2]
[338244306,1726422223665,-150.0,0.00012954,2]
[338244307,1726422223685,-185.1291855,0.00012973,2]
[338244308,1726422223708,-500.0,0.00012973,2]
[338244309,1726422223732,-150.0,0.00012981,2]
[338244310,1726422223755,-150.0,0.00012988,2]
[338244311,1726422223776,-489.403,0.00012988,2]
[338244312,1726422223798,-174.732,0.00012988,2]
[338244313,1726422223819,-150.0,0.00012995,2]
[338244314,1726422223844,-2976.0776316,0.00012996,2]
[338244315,1726422223865,-2917.9504645,0.00012996,2]
[338244316,1726422223886,-478.326774,0.00012996,2]
[338244317,1726422223908,-272.24496728,0.00012999,2]
[338244318,1726422223929,-16051.44301534,0.00012999,2]
[338244319,1726422223950,-719.0,0.00013,2]
[338244320,1726422223974,-2087.39434228,0.00013,2]
[338244322,1726422402892,239.13,0.00012532,2]
[338244323,1726422557170,169.18,0.00012298,2]
[338244324,1726422572155,166.35,0.00010959,2]
[338244330,1726422631997,-250.0,0.00012659,2]
[338244332,1726422632007,-650.0,0.0001287,2]
[338244339,1726422632166,-416.86751,0.0001287,2]
[338244340,1726422632176,-167.0,0.0001288,2]
[338244341,1726422632186,-37.72648834,0.000129,2]
[338244342,1726422632197,-5761.8768238,0.000129,2]
[338244352,1726422638172,-303.87696433,0.000129,2]
[338244353,1726422638182,-32.9883581,0.000129,2]
[338244354,1726422638231,-576.25,0.000129,2]
[338244378,1726422640251,-390.7616419,0.000129,2]
[338244379,1726422640261,-165.17663512,0.000129,2]
[338244380,1726422640271,-30.52777487,0.00012959,2]
[338244381,1726422640282,-119.47222513,0.00012959,2]
[338244382,1726422640292,-150.0,0.00012995,2]
[338244383,1726422640301,-62.93727488,0.00012996,2]
[338244396,1726422643319,-274.23999998,0.00012996,2]
[338244408,1726422646047,-5341.22944966,0.00012996,2]
[338244409,1726422646057,-3502.1696163,0.00012996,2]
[338244410,1726422646067,-17005.69587,0.00012996,2]
[338244411,1726422646076,-646.0,0.00013,2]
[338244412,1726422646086,-197779.5543594,0.00013,2]
[338244413,1726422646096,-57115.13747766,0.00013,2]
[338244415,1726422646465,-3352.57928644,0.00013,2]
[338244416,1726422646477,-353.41518193,0.00013,2]
[338244417,1726422666640,10000.0,0.0001262,2]
[338244418,1726422720488,1000.0,0.00012174,2]
[338244419,1726422766068,181.71187302,0.0001263,2]
[338244420,1726422771054,181.71187302,0.00012634,2]
[338244421,1726422776070,181.71187302,0.00012637,2]
[338244422,1726422801112,2000.0,0.00012146,2]
[338244423,1726422811705,1050.0,0.00011,2]
[338244424,1726422943964,167.0,0.00012478,2]
[338244425,1726422950525,171.35,0.00012115,2]
[338244426,1726422962768,755.66,0.00012095,2]
[338244427,1726423024279,250.0,0.0001211,2]
[338244428,1726423040459,711.24,0.00010149,2]
[338244429,1726423040656,711.24,0.00012413,2]
[338244430,1726423042255,250.0,0.00012067,2]
[338244431,1726423096073,199.47,0.00010959,2]
[338244432,1726423100241,168.54,0.00012101,2]
[338244433,1726423147208,23900.0,0.00012067,2]
[338244434,1726423163244,436.10849522,0.00012628,2]
[338244435,1726423165798,292.61,0.00012051,2]
[338244436,1726423181165,250.0,0.0001207,2]
[338244437,1726423245678,200.0,0.00012019,2]
[338244438,1726423415308,329.27,0.00012006,2]
[338244439,1726423516544,171.35,0.00012017,2]
[338244440,1726423538443,150.0,0.00011688,2]
[338244441,1726423543834,250.0,0.00012017,2]
[338244442,1726423650507,16494.02,0.00012001,2]
[338244443,1726423655524,698.64,0.00010083,2]
[338244444,1726423655743,698.64,0.00012347,2]
[338244445,1726423689916,226.1,0.00011986,2]
[338244446,1726423754458,840.0,0.00011986,2]
[338244447,1726423780828,156.62,0.00012601,2]
[338244448,1726423824496,167.0,0.00012445,2]
[338244458,1726423832206,-1150.0,0.000127,2]
[338244459,1726423832217,-1343.04984094,0.00012714,2]
[338244460,1726423832228,-955.37507359,0.00012714,2]
[338244461,1726423832243,-470.60202167,0.00012714,2]
[338244462,1726423832255,-11.27841053,0.00012714,2]
[338244463,1726423832265,-500.0,0.00012714,2]
[338244464,1726423832275,-500.0,0.00012714,2]
[338244465,1726423832284,-500.0,0.00012714,2]
[338244466,1726423832294,-500.0,0.00012714,2]
[338244467,1726423832303,-288.49006651,0.00012714,2]
[338244468,1726423832316,-211.50993349,0.00012714,2]
[338244469,1726423832326,-500.0,0.00012714,2]
[338244470,1726423832336,-500.0,0.00012714,2]
[338244471,1726423832346,-424.02975343,0.00012714,2]
[338244472,1726423832369,-150.0,0.0001273,2]
[338244473,1726423832378,-150.0,0.00012799,2]
[338244474,1726423832388,-150.0,0.0001281,2]
[338244475,1726423832397,-733.62035485,0.00012855,2]
[338244476,1726423832411,-766.37964515,0.00012855,2]
[338244477,1726423832421,-133.62035485,0.0001287,2]
[338244478,1726423832436,-858.86026515,0.0001287,2]
[338244479,1726423832446,-243.1050947,0.00012872,2]
[338244480,1726423832456,-150.0,0.00012876,2]
[338244481,1726423832465,-185.65659817,0.00012876,2]
[338244482,1726423832477,-314.33340183,0.00012876,2]
[338244483,1726423832487,-255.66659811,0.00012899,2]
[338244484,1726423832499,-351.899999,0.00012899,2]
[338244485,1726423832510,-2841.59974573,0.00012899,2]
[338244486,1726423832522,-1899.38365716,0.00012899,2]
[338244487,1726423832532,-150.0,0.00012899,2]
[338244488,1726423832542,-455.4335,0.000129,2]
[338244489,1726423832551,-159.77087476,0.000129,2]
[338244490,1726423832560,-6367.25615185,0.000129,2]
[338244491,1726423832570,-1906.816,0.000129,2]
[338244492,1726423832580,-404.9440307,0.000129,2]
[338244494,1726423832590,-324.63891237,0.000129,2]
[338244496,1726423832601,-656.03353528,0.000129,2]
[338244498,1726423832612,-355.34774474,0.000129,2]
[338244500,1726423832622,-150.0,0.00012925,2]
[338244501,1726423832633,-150.0,0.0001294,2]
[338244502,1726423832644,-179.18953328,0.00012973,2]
[338244503,1726423832655,-500.0,0.00012973,2]
[338244504,1726423832664,-150.0,0.00012973,2]
[338244505,1726423832674,-536.987,0.00012981,2]
[338244506,1726423832684,-188.343,0.00012981,2]
[338244507,1726423832694,-151.51,0.0001299,2]
[338244508,1726423832703,-237.4765173,0.0001299,2]
[338244509,1726423832713,-3487.5916786,0.00012996,2]
[338244510,1726423832724,-370.22630027,0.00012996,2]
[338244511,1726423832737,-435.7556911,0.00012996,2]
[338244512,1726423832748,-1256.1010051,0.00012996,2]
[338244513,1726423832760,-1000.0,0.00012999,2]
[338244514,1726423832769,-1000.0,0.00012999,2]
[338244515,1726423832779,-1000.0,0.00012999,2]
[338244516,1726423832789,-1000.0,0.00012999,2]
[338244517,1726423832803,-1000.0,0.00012999,2]
[338244518,1726423832813,-1000.0,0.00012999,2]
[338244519,1726423832823,-1000.0,0.00012999,2]
[338244520,1726423832833,-1000.0,0.00012999,2]
[338244521,1726423832844,-1000.0,0.00012999,2]
[338244522,1726423832858,-1000.0,0.00012999,2]
[338244523,1726423832868,-1000.0,0.00012999,2]
[338244524,1726423832878,-1000.0,0.00012999,2]
[338244525,1726423832888,-1000.0,0.00012999,2]
[338244526,1726423832899,-1000.0,0.00012999,2]
[338244527,1726423832911,-1000.0,0.00012999,2]
[338244528,1726423832922,-677.0,0.00012999,2]
[338244529,1726423832932,-401.7881975,0.00012999,2]
[338244530,1726423832943,-536.83810701,0.00012999,2]
[338244531,1726423832953,-500.20530699,0.00012999,2]
[338244532,1726423832963,-425.0,0.00012999,2]
[338244533,1726423832972,-500.0,0.00012999,2]
[338244534,1726423832983,-500.0,0.00012999,2]
[338244535,1726423832993,-227.12938384,0.00012999,2]
[338244536,1726423833003,-500.0,0.00012999,2]
[338244537,1726423833013,-500.0,0.00012999,2]
[338244538,1726423833022,-500.0,0.00012999,2]
[338244539,1726423833033,-500.0,0.00012999,2]
[338244540,1726423833043,-250.0,0.00012999,2]
[338244541,1726423833053,-354.50085692,0.00012999,2]
[338244542,1726423833064,-500.0,0.00012999,2]
[338244543,1726423833074,-511.20307847,0.00012999,2]
[338244544,1726423833085,-500.0,0.00012999,2]
[338244545,1726423833095,-500.0,0.00012999,2]
[338244546,1726423833105,-500.0,0.00012999,2]
[338244547,1726423833116,-500.0,0.00012999,2]
[338244548,1726423833126,-500.0,0.00012999,2]
[338244549,1726423833137,-500.0,0.00012999,2]
[338244550,1726423833147,-500.0,0.00012999,2]
[338244551,1726423833159,-500.0,0.00012999,2]
[338244552,1726423833169,-500.0,0.00012999,2]
[338244553,1726423833179,-500.0,0.00012999,2]
[338244554,1726423833189,-210.99594272,0.00012999,2]
[338244555,1726423833199,-500.0,0.00012999,2]
[338244556,1726423833210,-500.0,0.00012999,2]
[338244557,1726423833219,-150.0,0.00012999,2]
[338244558,1726423833230,-574.0,0.00013,2]
[338244559,1726423833240,-131272.35834376,0.00013,2]
[338244560,1726423833254,-162971.68671018,0.00013,2]
[338244561,1726423833269,-1800.0,0.00013,2]
[338244562,1726423833283,-369.0,0.00013,2]
[338244563,1726423833301,-299.78144014,0.00013,2]
[338244564,1726423833313,-429645.5875141,0.00013,2]
[338244565,1726423833325,-1286.71745306,0.00013,2]
[338244566,1726423833337,-6931.47533894,0.00013,2]
[338244567,1726423833350,-446.45853724,0.00013,2]
[338244568,1726423833362,-766.71121484,0.00013,2]
[338244569,1726423833744,-607.68561496,0.00013,2]
[338244570,1726423833756,-4676.89908156,0.00013,2]
[338244571,1726423833768,-481.470523,0.00013,2]
[338244572,1726423833780,-9027.01825,0.00013,2]
[338244575,1726423838301,-29166.63838452,0.00013,2]
[338244579,1726423838392,-577.87520853,0.00013,2]
[338244580,1726423838404,-1840.08345201,0.00013,2]
[338244581,1726423838417,-19081.35859594,0.00013,2]
[338244582,1726423838432,-16183.61727271,0.00013,2]
[338244583,1726423838444,-2383.05429346,0.00013,2]
[338244584,1726423838456,-544.38170658,0.00013,2]
[338244585,1726423838468,-1382.53570445,0.00013,2]
[338244586,1726423838504,-1014.6173005,0.00013,2]
[338244587,1726423838517,-4945.03969786,0.00013,2]
[338244588,1726423838529,-13929.74214198,0.00013,2]
[338244589,1726423838597,-397.33095442,0.00013,2]
[338244590,1726423838609,-1111.14398307,0.00013,2]
[338244591,1726423838625,-1470.99385786,0.00013,2]
[338244592,1726423838636,-999.83499872,0.00013,2]
[338244593,1726423838648,-1738.93951158,0.00013,2]
[338244594,1726423838660,-4678.43151661,0.00013,2]
[338244598,1726423840302,-517.0,0.00013,2]
[338244599,1726423840312,-352.59654346,0.00013,2]
[338244600,1726423840324,-141366.67604883,0.00013,2]
[338244601,1726423840335,-1765.19999999,0.00013,2]
[338244602,1726423840346,-22194.97216554,0.00013,2]
[338244603,1726423840358,-950.90019971,0.00013,2]
[338244604,1726423840369,-284.35257,0.00013,2]
[338244605,1726423840381,-300.0,0.00013,2]
[338244606,1726423840396,-665.71467956,0.00013,2]
[338244607,1726423840407,-6147.5526092,0.00013,2]
[338244608,1726423840420,-24924.90000006,0.00013,2]
[338244609,1726423840440,-1901.7881975,0.00013,2]
[338244610,1726423840451,-594.39655094,0.00013,2]
[338244611,1726423840463,-376.97269113,0.00013,2]
[338244612,1726423840474,-425.0,0.00013,2]
[338244613,1726423840536,-704.74178858,0.00013,2]
[338244614,1726423840548,-440.96864,0.00013,2]
[338244615,1726423840559,-501.04428,0.00013,2]
[338244627,1726423843352,921.28055295,0.00012608,2]
[338244628,1726423843365,-607.42738877,0.00013,2]
[338244629,1726423843436,-2504.18968181,0.00013,2]
[338244630,1726423843448,-5241.03220991,0.00013,2]
[338244631,1726423843458,-710.34553941,0.00013,2]
[338244632,1726423843469,-891.39,0.00013,2]
[338244633,1726423843479,-8999.90248729,0.00013,2]
[338244634,1726423843491,-99091.98900288,0.00013,2]
[338244672,1726423846295,-3001.3,0.00013,2]
[338244673,1726423846307,-354921.36572819,0.00013,2]
[338244674,1726423846320,-537.2269,0.00013,2]
[338244675,1726423846462,-1143.278,0.00013,2]
[338244676,1726423846474,-386.54870469,0.00013,2]
[338244677,1726423846486,-4232.79076969,0.00013,2]
[338244678,1726423846555,-5686.35000001,0.00013,2]
[338244683,1726423911483,300.755,0.00012574,2]
[338244684,1726424041516,182.1,0.0001217,2]
[338244685,1726424082123,250.0,0.00012198,2]
[338244686,1726424174730,1096.13,0.00012105,2]
[338244687,1726424186402,250.0,0.00012126,2]
[338244688,1726424186998,183.1,0.00012404,2]
[338244689,1726424225122,153.69,0.00010959,2]
[338244690,1726424304761,328.0,0.0001211,2]
[338244691,1726424351735,683.3,0.00010155,2]
[338244692,1726424351948,683.3,0.00012419,2]
[338244693,1726424357573,155.25,0.00012073,2]
[338244694,1726424357784,155.25,0.00012079,2]
[338244695,1726424358128,155.25,0.00012086,2]
[338244696,1726424358361,155.25,0.00012093,2]
[338244697,1726424358564,155.25,0.000121,2]
[338244698,1726424358979,155.25,0.00012106,2]
[338244699,1726424359223,155.25,0.00012113,2]
[338244700,1726424359454,155.25,0.0001212,2]
[338244701,1726424359719,155.25,0.00012126,2]
[338244702,1726424359936,155.25,0.00012133,2]
[338244703,1726424407368,638.57,0.00012093,2]
[338244704,1726424423092,200.0,0.00012093,2]
[338244705,1726424564304,187.48,0.00012058,2]
[338244706,1726424614155,1050.0,0.00011,2]
[338244707,1726424683515,250.0,0.00012052,2]
[338244708,1726424717729,618.2,0.00012033,2]
[338244709,1726424742919,268.92,0.00012033,2]
[338244718,1726424824301,3964.15,0.00012017,2]
[338244719,1726424855551,737.6,0.00012015,2]
[338244720,1726424861813,243.10509471,0.0001263,2]
[338244722,1726424896975,664.05,0.00010097,2]
[338244723,1726424897023,664.05,0.00012361,2]
[338244738,1726425031525,-1073.07773592,0.0001274,2]
[338244739,1726425031536,-1032.86464731,0.0001274,2]
[338244740,1726425031548,-820.61279922,0.000128,2]
[338244741,1726425031562,-4914.07778035,0.000128,2]
[338244742,1726425031574,-2500.0,0.000128,2]
[338244743,1726425031585,-1500.0,0.00012824,2]
[338244744,1726425031596,-150.0,0.00012825,2]
[338244745,1726425031608,-992.48062,0.0001287,2]
[338244746,1726425031621,-200.039,0.00012873,2]
[338244747,1726425031631,-595.446,0.00012873,2]
[338244748,1726425031642,-27629.70929437,0.0001288,2]
[338244749,1726425031657,-165.10079916,0.00012896,2]
[338244750,1726425031668,-165.10079912,0.00012897,2]
[338244751,1726425031678,-165.10079912,0.00012898,2]
[338244752,1726425031689,-499.99,0.00012898,2]
[338244754,1726425031700,-42673.42933724,0.00012898,2]
[338244756,1726425031711,-165.10079912,0.00012898,2]
[338244758,1726425031722,-165.10079912,0.00012899,2]
[338244760,1726425031733,-2446.0567,0.000129,2]
[338244762,1726425031744,-34803.4372,0.000129,2]
[338244764,1726425031755,-10930.3533,0.000129,2]
[338244766,1726425031765,-1075.8716,0.000129,2]
[338244768,1726425031776,-1451.1123,0.000129,2]
[338244770,1726425031787,-900.58,0.000129,2]
[338244773,1726425031798,-264.8041,0.000129,2]
[338244775,1726425031809,-157831.3688,0.000129,2]
[338244777,1726425031820,-159.77087476,0.000129,2]
[338244779,1726425031830,-992.48062,0.000129,2]
[338244781,1726425031841,-1204.60609676,0.000129,2]
[338244783,1726425031852,-165.10079912,0.000129,2]
[338244785,1726425031868,-1785.29390032,0.000129,2]
[338244786,1726425031879,-150.0,0.00012907,2]
[338244787,1726425031890,-992.48063,0.0001293,2]
[338244788,1726425031901,-150.0,0.00012938,2]
[338244789,1726425031912,-151.97,0.0001299,2]
[338244790,1726425031924,-151.97,0.0001299,2]
[338244791,1726425031935,-158.31767819,0.0001299,2]
[338244792,1726425031946,-158.31767819,0.0001299,2]
[338244793,1726425031960,-540.9999974,0.00012996,2]
[338244794,1726425031970,-521.3375565,0.00012996,2]
[338244795,1726425031981,-14399.2963779,0.00012996,2]
[338244796,1726425031992,-251.06956285,0.00012996,2]
[338244797,1726425032003,-964.0924656,0.00012996,2]
[338244798,1726425032015,-2298.94335656,0.00012997,2]
[338244799,1726425032026,-499.99999999,0.00012999,2]
[338244800,1726425032037,-500.0,0.00012999,2]
[338244801,1726425032048,-513.86335129,0.00012999,2]
[338244802,1726425032059,-1000.0,0.00013,2]
[338244803,1726425032071,-574.0,0.00013,2]
[338244804,1726425032082,-140126.71503851,0.00013,2]
[338244805,1726425032108,-2701.5794943,0.00013,2]
[338244806,1726425037473,-3447.32918034,0.00013,2]
[338244808,1726425037554,-393.01182328,0.00013,2]
[338244809,1726425037569,-312.22017178,0.00013,2]
[338244810,1726425037582,-618.74932003,0.00013,2]
[338244811,1726425037596,-777.16020434,0.00013,2]
[338244812,1726425037719,-355.34774474,0.000129,2]
[338244813,1726425037730,-7853.18745722,0.00013,2]
[338244814,1726425037743,-12210.02450193,0.00013,2]
[338244815,1726425037756,-7214.73959698,0.00013,2]
[338244816,1726425037769,-830.76722118,0.00013,2]
[338244817,1726425037788,-253.7732008,0.00013,2]
[338244818,1726425037801,-17691.55925503,0.00013,2]
[338244819,1726425037811,-8884.0050288,0.00013,2]
[338244820,1726425037838,-1080.68345125,0.00013,2]
[338244821,1726425039523,-524.0,0.00013,2]
[338244822,1726425039535,-177.66503495,0.00013,2]
[338244823,1726425039549,-1209.49724686,0.00013,2]